[Event "Early-Titled-Tuesday-Blitz-April-23-2024"]
[Site "Chess.com"]
[Date "2024.04.23"]
[Round "5"]
[White "Stanbad1"]
[Black "LLariMarc"]
[Result "1-0"]
[WhiteElo "2643"]
[BlackElo "2483"]
[TimeControl "180+1"]
[EndTime "8:56:35 PDT"]
[Termination "Stanbad1 won by checkmate"]

1. d4 {[%clk 0:03:00.9]} 1... Nf6 {[%clk 0:02:50.5]} 2. Nc3 {[%clk 0:03:00.7]}
2... d5 {[%clk 0:02:42.9]} 3. Bf4 {[%clk 0:03:00]} 3... Bf5 {[%clk 0:02:33.8]}
4. e3 {[%clk 0:02:59.8]} 4... e6 {[%clk 0:02:29.1]} 5. Nf3 {[%clk 0:02:59.5]}
5... Bd6 {[%clk 0:02:27]} 6. Ne5 {[%clk 0:02:59.6]} 6... a6 {[%clk 0:02:24.5]}
7. g4 {[%clk 0:02:57.8]} 7... Bg6 {[%clk 0:02:24.2]} 8. h4 {[%clk 0:02:57.4]}
8... h6 {[%clk 0:01:55.3]} 9. Nxg6 {[%clk 0:02:52.7]} 9... fxg6 {[%clk
0:01:56.2]} 10. Bd3 {[%clk 0:02:52.4]} 10... Kf7 {[%clk 0:01:55.6]} 11. Qf3
{[%clk 0:02:52.2]} 11... Bxf4 {[%clk 0:01:36.8]} 12. exf4 {[%clk 0:02:49.6]}
12... Nbd7 {[%clk 0:01:31.5]} 13. O-O-O {[%clk 0:02:49.1]} 13... c5 {[%clk
0:01:29.6]} 14. g5 {[%clk 0:02:23]} 14... Ne8 {[%clk 0:01:24.8]} 15. f5 {[%clk
0:02:19.9]} 15... gxf5 {[%clk 0:01:20.9]} 16. Nxd5 {[%clk 0:02:07.9]} 16... exd5
{[%clk 0:01:18.1]} 17. Qxd5+ {[%clk 0:02:07.4]} 17... Kf8 {[%clk 0:01:16.7]} 18.
Qxf5+ {[%clk 0:02:05.3]} 18... Nef6 {[%clk 0:00:59.6]} 19. gxf6 {[%clk
0:02:04.2]} 19... Nxf6 {[%clk 0:00:59.3]} 20. Qxc5+ {[%clk 0:02:03.6]} 20... Qe7
{[%clk 0:00:58.1]} 21. Qf5 {[%clk 0:01:58.4]} 21... Rd8 {[%clk 0:00:54.5]} 22.
Bc4 {[%clk 0:01:58]} 22... Qe4 {[%clk 0:00:51.4]} 23. Qc5+ {[%clk 0:01:51.9]}
23... Qe7 {[%clk 0:00:50.6]} 24. Qa5 {[%clk 0:01:50.1]} 24... b5 {[%clk
0:00:47.3]} 25. Rhe1 {[%clk 0:01:48.5]} 25... Qd7 {[%clk 0:00:44.2]} 26. Be6
{[%clk 0:01:46]} 26... Qd6 {[%clk 0:00:44.1]} 27. Bb3 {[%clk 0:01:44.7]} 27...
g6 {[%clk 0:00:37.7]} 28. Re6 {[%clk 0:01:43.9]} 28... Qf4+ {[%clk 0:00:37.2]}
29. Kb1 {[%clk 0:01:43.7]} 29... Rxd4 {[%clk 0:00:36]} 30. Rde1 {[%clk
0:01:35.8]} 30... h5 {[%clk 0:00:29.8]} 31. Qb6 {[%clk 0:01:33.3]} 31... Kg7
{[%clk 0:00:27.2]} 32. a3 {[%clk 0:01:21.9]} 32... Rhd8 {[%clk 0:00:24.8]} 33.
Ka2 {[%clk 0:01:07.1]} 33... Qxh4 {[%clk 0:00:21]} 34. Re7+ {[%clk 0:01:00.8]}
34... Kh6 {[%clk 0:00:19.9]} 35. R1e6 {[%clk 0:01:00.4]} 35... Nd5 {[%clk
0:00:16.3]} 36. Rxg6# {[%clk 0:01:00]} 1-0

[Event "Early-Titled-Tuesday-Blitz-April-23-2024"]
[Site "Chess.com"]
[Date "2024.04.23"]
[Round "5"]
[White "Eagle_2019"]
[Black "nekotyanof"]
[Result "1-0"]
[WhiteElo "2858"]
[BlackElo "2662"]
[TimeControl "180+1"]
[EndTime "8:56:36 PDT"]
[Termination "Eagle_2019 won by resignation"]

1. d4 {[%clk 0:02:54.4]} 1... Nf6 {[%clk 0:02:59]} 2. c4 {[%clk 0:02:54]} 2...
g6 {[%clk 0:02:59.3]} 3. g3 {[%clk 0:02:52.6]} 3... c6 {[%clk 0:02:59.1]} 4. Bg2
{[%clk 0:02:52.3]} 4... d5 {[%clk 0:02:59.8]} 5. Nf3 {[%clk 0:02:51.5]} 5... Bg7
{[%clk 0:03:00.3]} 6. O-O {[%clk 0:02:45.1]} 6... O-O {[%clk 0:03:00.8]} 7. b3
{[%clk 0:02:43.5]} 7... dxc4 {[%clk 0:03:01]} 8. bxc4 {[%clk 0:02:43.6]} 8... c5
{[%clk 0:03:01.9]} 9. e3 {[%clk 0:02:34.4]} 9... Nc6 {[%clk 0:02:58.5]} 10. Bb2
{[%clk 0:02:32.3]} 10... Qb6 {[%clk 0:02:57.5]} 11. Qe2 {[%clk 0:02:30.5]} 11...
Bg4 {[%clk 0:02:47.7]} 12. d5 {[%clk 0:02:28.4]} 12... Na5 {[%clk 0:02:43.2]}
13. Bc3 {[%clk 0:02:19.4]} 13... Ne4 {[%clk 0:02:32.6]} 14. Bxg7 {[%clk
0:02:18.8]} 14... Kxg7 {[%clk 0:02:33.5]} 15. h3 {[%clk 0:02:14.3]} 15... Qf6
{[%clk 0:02:27.8]} 16. hxg4 {[%clk 0:01:45.6]} 16... Qxa1 {[%clk 0:02:27.8]} 17.
Qc2 {[%clk 0:01:44.4]} 17... f5 {[%clk 0:02:22.7]} 18. gxf5 {[%clk 0:01:44.3]}
18... gxf5 {[%clk 0:02:23.6]} 19. Nh4 {[%clk 0:01:42]} 19... Qe5 {[%clk
0:02:16.9]} 20. f4 {[%clk 0:01:37.9]} 20... Qf6 {[%clk 0:02:05.1]} 21. Bxe4
{[%clk 0:01:37.4]} 21... fxe4 {[%clk 0:02:04.3]} 22. Qxe4 {[%clk 0:01:38.3]}
22... Rae8 {[%clk 0:01:56.7]} 23. Nd2 {[%clk 0:01:35.9]} 23... e6 {[%clk
0:01:56.7]} 24. Qd3 {[%clk 0:01:32.5]} 24... exd5 {[%clk 0:01:48]} 25. cxd5
{[%clk 0:01:33.4]} 25... c4 {[%clk 0:01:47.6]} 26. Qa3 {[%clk 0:01:31.8]} 26...
c3 {[%clk 0:01:47.3]} 27. Qxa5 {[%clk 0:01:29.9]} 27... cxd2 {[%clk 0:01:31.2]}
28. Qxd2 {[%clk 0:01:30.8]} 28... Kh8 {[%clk 0:01:28.7]} 29. Rd1 {[%clk
0:01:22.8]} 29... Rg8 {[%clk 0:01:27.2]} 30. Kf2 {[%clk 0:01:21.2]} 30... Qg7
{[%clk 0:01:23.9]} 31. Qd4 {[%clk 0:01:19.3]} 31... Rc8 {[%clk 0:01:14.7]} 32.
Nf5 {[%clk 0:01:14.8]} 32... Rc2+ {[%clk 0:01:14.1]} 33. Kf3 {[%clk 0:01:13.4]}
33... Qxd4 {[%clk 0:01:14.1]} 34. Rxd4 {[%clk 0:01:14.3]} 34... Rxa2 {[%clk
0:01:13.6]} 35. d6 {[%clk 0:01:12.9]} 35... Rd8 {[%clk 0:01:14]} 36. e4 {[%clk
0:01:10.6]} 36... Kg8 {[%clk 0:01:13.9]} 37. e5 {[%clk 0:01:08.9]} 37... Kf7
{[%clk 0:01:13.9]} 38. Rc4 {[%clk 0:01:06.5]} 38... b5 {[%clk 0:01:03.4]} 39.
Rc7+ {[%clk 0:01:03.9]} 39... Ke6 {[%clk 0:01:02.9]} 40. Ne3 {[%clk 0:01:01.4]}
40... Re8 {[%clk 0:00:53.9]} 41. f5+ {[%clk 0:00:57.1]} 41... Kxe5 {[%clk
0:00:51.6]} 42. Re7+ {[%clk 0:00:57.7]} 42... Kxd6 {[%clk 0:00:44.2]} 43. Rxe8
{[%clk 0:00:56.5]} 43... b4 {[%clk 0:00:45.1]} 44. f6 {[%clk 0:00:54.6]} 1-0

[Event "Early-Titled-Tuesday-Blitz-April-23-2024"]
[Site "Chess.com"]
[Date "2024.04.23"]
[Round "5"]
[White "ubdip"]
[Black "2L8IWUN"]
[Result "1-0"]
[WhiteElo "2374"]
[BlackElo "2078"]
[TimeControl "180+1"]
[EndTime "8:56:45 PDT"]
[Termination "ubdip won on time"]

1. c4 {[%clk 0:03:00.9]} 1... Nf6 {[%clk 0:02:56.5]} 2. Nc3 {[%clk 0:03:01.4]}
2... e6 {[%clk 0:02:56.6]} 3. e4 {[%clk 0:03:00.7]} 3... d5 {[%clk 0:02:57.3]}
4. e5 {[%clk 0:03:00]} 4... d4 {[%clk 0:02:57.7]} 5. exf6 {[%clk 0:02:59.5]}
5... dxc3 {[%clk 0:02:58.3]} 6. bxc3 {[%clk 0:02:58.6]} 6... Qxf6 {[%clk
0:02:57.3]} 7. d4 {[%clk 0:02:55.1]} 7... e5 {[%clk 0:02:56.8]} 8. Nf3 {[%clk
0:02:50.4]} 8... Nc6 {[%clk 0:02:56.6]} 9. Be2 {[%clk 0:02:32.7]} 9... exd4
{[%clk 0:02:43.8]} 10. cxd4 {[%clk 0:02:33.6]} 10... Bb4+ {[%clk 0:02:43.7]} 11.
Bd2 {[%clk 0:02:33.9]} 11... Bxd2+ {[%clk 0:02:43.5]} 12. Qxd2 {[%clk
0:02:34.5]} 12... O-O {[%clk 0:02:38.4]} 13. O-O {[%clk 0:02:33.5]} 13... Bg4
{[%clk 0:02:38]} 14. Rad1 {[%clk 0:02:30.5]} 14... Rad8 {[%clk 0:02:35.5]} 15.
d5 {[%clk 0:02:28.7]} 15... b6 {[%clk 0:02:04.8]} 16. Rfe1 {[%clk 0:02:06.3]}
16... Na5 {[%clk 0:01:54.2]} 17. Nd4 {[%clk 0:01:53.7]} 17... Bxe2 {[%clk
0:01:40]} 18. Qxe2 {[%clk 0:01:54.6]} 18... g6 {[%clk 0:01:11.6]} 19. Nb3 {[%clk
0:01:37.8]} 19... Nxb3 {[%clk 0:00:24.4]} 20. axb3 {[%clk 0:01:38.7]} 20... Rfe8
{[%clk 0:00:22.9]} 21. Qc2 {[%clk 0:01:25.1]} 21... a5 {[%clk 0:00:20.6]} 22. h3
{[%clk 0:01:17.8]} 22... Qd6 {[%clk 0:00:14.9]} 23. Re4 {[%clk 0:00:54.9]} 23...
f5 {[%clk 0:00:13]} 24. Re2 {[%clk 0:00:52.1]} 24... Qa3 {[%clk 0:00:09.7]} 25.
Rde1 {[%clk 0:00:47.9]} 25... Rxe2 {[%clk 0:00:06.7]} 26. Qxe2 {[%clk
0:00:46.3]} 26... Qd6 {[%clk 0:00:04.6]} 27. Qe7 {[%clk 0:00:40.7]} 1-0

[Event "Early-Titled-Tuesday-Blitz-April-23-2024"]
[Site "Chess.com"]
[Date "2024.04.23"]
[Round "5"]
[White "LuisFSiles"]
[Black "djano"]
[Result "0-1"]
[WhiteElo "2456"]
[BlackElo "2617"]
[TimeControl "180+1"]
[EndTime "8:56:49 PDT"]
[Termination "djano won on time"]

1. e4 {[%clk 0:03:00.9]} 1... c5 {[%clk 0:02:58.9]} 2. Nf3 {[%clk 0:03:00.3]}
2... g6 {[%clk 0:02:57.6]} 3. d4 {[%clk 0:02:59.7]} 3... cxd4 {[%clk 0:02:57.3]}
4. Qxd4 {[%clk 0:03:00.4]} 4... Nf6 {[%clk 0:02:57.1]} 5. Nc3 {[%clk 0:03:00.5]}
5... Nc6 {[%clk 0:02:57.1]} 6. Qa4 {[%clk 0:03:01.2]} 6... d6 {[%clk 0:02:54.5]}
7. e5 {[%clk 0:03:01.5]} 7... dxe5 {[%clk 0:02:55.4]} 8. Nxe5 {[%clk 0:03:01.9]}
8... Bd7 {[%clk 0:02:55.8]} 9. Nxd7 {[%clk 0:03:00]} 9... Nxd7 {[%clk
0:02:56.7]} 10. Bb5 {[%clk 0:02:55.9]} 10... Bg7 {[%clk 0:02:56.7]} 11. O-O
{[%clk 0:02:48.2]} 11... O-O {[%clk 0:02:53.4]} 12. Bxc6 {[%clk 0:02:46.3]}
12... bxc6 {[%clk 0:02:54.3]} 13. Qxc6 {[%clk 0:02:45.3]} 13... Rc8 {[%clk
0:02:54.5]} 14. Qa6 {[%clk 0:02:36.7]} 14... Qb6 {[%clk 0:02:24.6]} 15. Qxb6
{[%clk 0:02:34]} 15... Nxb6 {[%clk 0:02:25.2]} 16. Be3 {[%clk 0:02:04.9]} 16...
Nc4 {[%clk 0:02:19.1]} 17. Nd5 {[%clk 0:01:49.8]} 17... Nxe3 {[%clk 0:02:14.6]}
18. Nxe3 {[%clk 0:01:36.1]} 18... Bxb2 {[%clk 0:02:12.6]} 19. Rab1 {[%clk
0:01:36.4]} 19... Bd4 {[%clk 0:02:09.4]} 20. Rb7 {[%clk 0:01:35.8]} 20... e6
{[%clk 0:02:06.9]} 21. Rd1 {[%clk 0:01:31.8]} 21... Rfd8 {[%clk 0:02:02.5]} 22.
Rd3 {[%clk 0:01:18.2]} 22... e5 {[%clk 0:01:35.1]} 23. h4 {[%clk 0:00:58.5]}
23... h5 {[%clk 0:01:33.9]} 24. g4 {[%clk 0:00:39.6]} 24... hxg4 {[%clk
0:01:27.9]} 25. Nxg4 {[%clk 0:00:38.2]} 25... Rxc2 {[%clk 0:01:22]} 26. Rf3
{[%clk 0:00:14.3]} 26... Rf8 {[%clk 0:01:11.2]} 27. Rfxf7 {[%clk 0:00:11.7]}
27... Rxf7 {[%clk 0:01:05.9]} 28. Nh6+ {[%clk 0:00:11.5]} 28... Kh8 {[%clk
0:01:06.4]} 29. Nxf7+ {[%clk 0:00:11.5]} 29... Kg8 {[%clk 0:01:06.9]} 30. Nh6+
{[%clk 0:00:11.2]} 30... Kf8 {[%clk 0:01:07.4]} 31. Ng4 {[%clk 0:00:10.6]} 31...
Rxa2 {[%clk 0:01:05.3]} 32. Rd7 {[%clk 0:00:10.2]} 32... Rd2 {[%clk 0:01:00.8]}
33. Kg2 {[%clk 0:00:07.7]} 33... a5 {[%clk 0:00:58.8]} 34. Nf6 {[%clk
0:00:03.4]} 34... Rxf2+ {[%clk 0:00:57.7]} 35. Kg3 {[%clk 0:00:04]} 35... Rxf6
{[%clk 0:00:57.9]} 0-1

[Event "Early-Titled-Tuesday-Blitz-April-23-2024"]
[Site "Chess.com"]
[Date "2024.04.23"]
[Round "5"]
[White "Bykov_Egor"]
[Black "maciek_92"]
[Result "0-1"]
[WhiteElo "2613"]
[BlackElo "2839"]
[TimeControl "180+1"]
[EndTime "8:56:50 PDT"]
[Termination "maciek_92 won by resignation"]

1. Nf3 {[%clk 0:03:00.9]} 1... d5 {[%clk 0:02:59.9]} 2. g3 {[%clk 0:02:59]} 2...
c6 {[%clk 0:03:00.6]} 3. Bg2 {[%clk 0:02:59.2]} 3... Bg4 {[%clk 0:03:01.4]} 4.
O-O {[%clk 0:02:59.6]} 4... Nd7 {[%clk 0:03:02.2]} 5. d4 {[%clk 0:02:59.5]} 5...
Ngf6 {[%clk 0:03:02.7]} 6. h3 {[%clk 0:02:56.5]} 6... Bxf3 {[%clk 0:03:02.4]} 7.
Bxf3 {[%clk 0:02:56.3]} 7... e5 {[%clk 0:03:00.7]} 8. dxe5 {[%clk 0:02:34.8]}
8... Nxe5 {[%clk 0:03:01.6]} 9. Bg2 {[%clk 0:02:34.2]} 9... Bd6 {[%clk
0:03:01.6]} 10. b3 {[%clk 0:02:33.6]} 10... Qc7 {[%clk 0:03:00.4]} 11. Bb2
{[%clk 0:02:13.4]} 11... O-O-O {[%clk 0:03:01]} 12. Nd2 {[%clk 0:02:02.1]} 12...
h5 {[%clk 0:03:01.6]} 13. Nf3 {[%clk 0:01:50.1]} 13... Rde8 {[%clk 0:02:56.3]}
14. Nxe5 {[%clk 0:01:22.8]} 14... Bxe5 {[%clk 0:02:57.2]} 15. Bxe5 {[%clk
0:01:22.7]} 15... Qxe5 {[%clk 0:02:57.2]} 16. e3 {[%clk 0:01:22]} 16... h4
{[%clk 0:02:57.8]} 17. g4 {[%clk 0:01:19.8]} 17... Rd8 {[%clk 0:02:56.7]} 18.
Qd4 {[%clk 0:01:15]} 18... Qxd4 {[%clk 0:02:54.5]} 19. exd4 {[%clk 0:01:15.9]}
19... Rhe8 {[%clk 0:02:54.8]} 20. Rfe1 {[%clk 0:01:14.7]} 20... Kd7 {[%clk
0:02:54.6]} 21. f4 {[%clk 0:01:03.2]} 21... Kd6 {[%clk 0:02:47.8]} 22. Kf2
{[%clk 0:00:56]} 22... Nh7 {[%clk 0:02:46.8]} 23. Re5 {[%clk 0:00:49.3]} 23...
f6 {[%clk 0:02:43.1]} 24. Rh5 {[%clk 0:00:41.2]} 24... Nf8 {[%clk 0:02:43.1]}
25. f5 {[%clk 0:00:38.2]} 25... Re7 {[%clk 0:02:40.2]} 26. Rxh4 {[%clk
0:00:37.5]} 26... Rde8 {[%clk 0:02:39.3]} 27. Bf3 {[%clk 0:00:37.9]} 27... Re3
{[%clk 0:02:38.6]} 28. Rd1 {[%clk 0:00:32.6]} 28... Rc3 {[%clk 0:02:30.9]} 29.
Rd2 {[%clk 0:00:33.1]} 29... Re7 {[%clk 0:02:31.1]} 30. Rh8 {[%clk 0:00:31.5]}
30... Nd7 {[%clk 0:02:31.5]} 31. h4 {[%clk 0:00:25.8]} 31... a5 {[%clk 0:02:24]}
32. Rg8 {[%clk 0:00:19.8]} 32... a4 {[%clk 0:02:20.7]} 33. bxa4 {[%clk
0:00:19.6]} 33... Nb6 {[%clk 0:02:20.2]} 34. Re2 {[%clk 0:00:18.4]} 34... Rf7
{[%clk 0:02:14.3]} 35. Rge8 {[%clk 0:00:09.4]} 35... Nc4 {[%clk 0:02:12.1]} 36.
R2e6+ {[%clk 0:00:09]} 36... Kd7 {[%clk 0:02:11.4]} 37. Re2 {[%clk 0:00:07]}
37... Rxc2 {[%clk 0:02:05.1]} 38. Rxc2 {[%clk 0:00:06.1]} 38... Kxe8 {[%clk
0:02:05.5]} 39. g5 {[%clk 0:00:06]} 39... Kf8 {[%clk 0:02:00.1]} 40. Bh5 {[%clk
0:00:05.6]} 40... Re7 {[%clk 0:01:59.8]} 41. Re2 {[%clk 0:00:05.8]} 41... Nd6
{[%clk 0:01:57.7]} 42. Rxe7 {[%clk 0:00:05.2]} 42... Kxe7 {[%clk 0:01:58.6]} 43.
Bg6 {[%clk 0:00:04.8]} 43... Ne4+ {[%clk 0:01:51]} 44. Kf3 {[%clk 0:00:03.6]}
44... fxg5 {[%clk 0:01:50.3]} 45. f6+ {[%clk 0:00:02.9]} 45... Kxf6 {[%clk
0:01:48.9]} 46. h5 {[%clk 0:00:01.3]} 46... Nc3 {[%clk 0:01:47.8]} 47. Kg4
{[%clk 0:00:01.5]} 47... Nxa4 {[%clk 0:01:47.2]} 48. Bf5 {[%clk 0:00:02]} 48...
Nc3 {[%clk 0:01:47.1]} 49. Bc8 {[%clk 0:00:02.6]} 49... b6 {[%clk 0:01:45.4]}
50. Bb7 {[%clk 0:00:03.1]} 50... c5 {[%clk 0:01:46.1]} 51. dxc5 {[%clk
0:00:03.3]} 51... bxc5 {[%clk 0:01:47]} 52. a4 {[%clk 0:00:04.2]} 52... Nxa4
{[%clk 0:01:45.3]} 53. Bxd5 {[%clk 0:00:04.7]} 53... Nc3 {[%clk 0:01:45.6]} 54.
Bc4 {[%clk 0:00:04.8]} 54... Ne4 {[%clk 0:01:45.7]} 55. Bd3 {[%clk 0:00:04.3]}
55... Nf2+ {[%clk 0:01:45.9]} 56. Kf3 {[%clk 0:00:05]} 56... Nxd3 {[%clk
0:01:46.8]} 0-1

[Event "Early-Titled-Tuesday-Blitz-April-23-2024"]
[Site "Chess.com"]
[Date "2024.04.23"]
[Round "5"]
[White "karinachess1"]
[Black "Flaccidmoves"]
[Result "1-0"]
[WhiteElo "2611"]
[BlackElo "2450"]
[TimeControl "180+1"]
[EndTime "8:56:50 PDT"]
[Termination "karinachess1 won on time"]

1. d4 {[%clk 0:03:00.9]} 1... Nf6 {[%clk 0:02:55]} 2. c4 {[%clk 0:03:00.9]} 2...
g6 {[%clk 0:02:55.6]} 3. Nc3 {[%clk 0:02:59.2]} 3... d5 {[%clk 0:02:56.2]} 4. h4
{[%clk 0:02:59]} 4... dxc4 {[%clk 0:02:48.4]} 5. e4 {[%clk 0:02:58.9]} 5... e5
{[%clk 0:02:43.5]} 6. d5 {[%clk 0:02:38.1]} 6... Bc5 {[%clk 0:02:31.4]} 7. Bxc4
{[%clk 0:02:33.6]} 7... Ng4 {[%clk 0:02:25.6]} 8. Nh3 {[%clk 0:02:16.6]} 8...
Qxh4 {[%clk 0:02:09.4]} 9. O-O {[%clk 0:02:16.6]} 9... O-O {[%clk 0:01:49.7]}
10. Qf3 {[%clk 0:01:26.1]} 10... Nd7 {[%clk 0:01:29.7]} 11. Bg5 {[%clk
0:01:21.5]} 11... Qh5 {[%clk 0:01:29.5]} 12. Be2 {[%clk 0:01:21.5]} 12... Nb6
{[%clk 0:01:18.3]} 13. Nb5 {[%clk 0:01:10.9]} 13... f5 {[%clk 0:00:59.7]} 14.
Nxc7 {[%clk 0:00:57]} 14... fxe4 {[%clk 0:00:59.2]} 15. Qg3 {[%clk 0:00:57.4]}
15... h6 {[%clk 0:00:45.4]} 16. Be3 {[%clk 0:00:36.4]} 16... Bd6 {[%clk
0:00:34.4]} 17. Ne6 {[%clk 0:00:34.8]} 17... Bxe6 {[%clk 0:00:33.3]} 18. dxe6
{[%clk 0:00:35.7]} 18... Qf5 {[%clk 0:00:05.7]} 19. Bxg4 {[%clk 0:00:31.5]}
19... Qf6 {[%clk 0:00:06.6]} 20. Bxh6 {[%clk 0:00:31.7]} 20... Rfe8 {[%clk
0:00:05.8]} 21. Bg5 {[%clk 0:00:31.5]} 21... Qg7 {[%clk 0:00:06]} 22. Qh4 {[%clk
0:00:30.7]} 22... Nd5 {[%clk 0:00:03.4]} 23. Rad1 {[%clk 0:00:28.7]} 1-0

[Event "Early-Titled-Tuesday-Blitz-April-23-2024"]
[Site "Chess.com"]
[Date "2024.04.23"]
[Round "5"]
[White "GambitGiesbergen"]
[Black "lupta_robin"]
[Result "0-1"]
[WhiteElo "2324"]
[BlackElo "2576"]
[TimeControl "180+1"]
[EndTime "8:56:50 PDT"]
[Termination "lupta_robin won by resignation"]

1. d4 {[%clk 0:02:55.9]} 1... Nf6 {[%clk 0:02:58.3]} 2. Nc3 {[%clk 0:02:54.8]}
2... d5 {[%clk 0:02:58]} 3. e4 {[%clk 0:02:54.8]} 3... dxe4 {[%clk 0:02:47.6]}
4. Bg5 {[%clk 0:02:55.1]} 4... Nbd7 {[%clk 0:02:46.8]} 5. Qe2 {[%clk 0:02:52.8]}
5... h6 {[%clk 0:02:44.4]} 6. Bh4 {[%clk 0:02:52.3]} 6... e6 {[%clk 0:02:28.1]}
7. f3 {[%clk 0:02:52.5]} 7... c5 {[%clk 0:01:57.2]} 8. O-O-O {[%clk 0:02:51.5]}
8... cxd4 {[%clk 0:01:51.2]} 9. Rxd4 {[%clk 0:02:45.8]} 9... Bc5 {[%clk
0:01:51.5]} 10. Rd1 {[%clk 0:02:38.8]} 10... Qb6 {[%clk 0:01:28.4]} 11. Na4
{[%clk 0:02:25.7]} 11... Qa5 {[%clk 0:01:28.5]} 12. Nxc5 {[%clk 0:02:24.6]}
12... Nxc5 {[%clk 0:01:29.4]} 13. Bxf6 {[%clk 0:02:23.1]} 13... gxf6 {[%clk
0:01:28.7]} 14. Kb1 {[%clk 0:02:21.4]} 14... Bd7 {[%clk 0:01:17.2]} 15. fxe4
{[%clk 0:02:18.8]} 15... O-O-O {[%clk 0:01:03.6]} 16. Nf3 {[%clk 0:02:18.3]}
16... Bb5 {[%clk 0:00:47.6]} 17. c4 {[%clk 0:02:00.3]} 17... Bc6 {[%clk
0:00:42.9]} 18. Nd2 {[%clk 0:01:20.6]} 18... Nxe4 {[%clk 0:00:36]} 19. Nxe4
{[%clk 0:01:19.1]} 19... Bxe4+ {[%clk 0:00:35.4]} 20. Ka1 {[%clk 0:01:19.7]}
20... Rxd1+ {[%clk 0:00:34.4]} 21. Qxd1 {[%clk 0:01:20.6]} 21... Rd8 {[%clk
0:00:34.3]} 22. Qc1 {[%clk 0:01:11.5]} 22... Rd2 {[%clk 0:00:28.5]} 23. c5
{[%clk 0:00:51.5]} 23... Rc2 {[%clk 0:00:26.3]} 24. Qd1 {[%clk 0:00:46]} 24...
Qb4 {[%clk 0:00:20.1]} 25. Qxc2 {[%clk 0:00:22.3]} 25... Qe1+ {[%clk 0:00:16.7]}
0-1

[Event "Early-Titled-Tuesday-Blitz-April-23-2024"]
[Site "Chess.com"]
[Date "2024.04.23"]
[Round "5"]
[White "Agibileg"]
[Black "HajiyevKanan"]
[Result "1-0"]
[WhiteElo "2819"]
[BlackElo "2620"]
[TimeControl "180+1"]
[EndTime "8:56:52 PDT"]
[Termination "Agibileg won by resignation"]

1. d4 {[%clk 0:02:59.4]} 1... d5 {[%clk 0:02:59.8]} 2. c4 {[%clk 0:02:54.4]}
2... c6 {[%clk 0:03:00.2]} 3. Nf3 {[%clk 0:02:52.1]} 3... Nf6 {[%clk 0:03:00.7]}
4. Nc3 {[%clk 0:02:50.9]} 4... a6 {[%clk 0:03:00.6]} 5. g3 {[%clk 0:02:48.8]}
5... g6 {[%clk 0:02:59.9]} 6. Bg2 {[%clk 0:02:48.4]} 6... Bg7 {[%clk 0:03:00.6]}
7. O-O {[%clk 0:02:47]} 7... O-O {[%clk 0:03:00.8]} 8. a4 {[%clk 0:02:45.7]}
8... Bf5 {[%clk 0:02:55]} 9. a5 {[%clk 0:02:44.3]} 9... Ne4 {[%clk 0:02:54.7]}
10. Qb3 {[%clk 0:02:41.4]} 10... Ra7 {[%clk 0:02:27.1]} 11. cxd5 {[%clk
0:02:34.7]} 11... Nxc3 {[%clk 0:02:25.6]} 12. bxc3 {[%clk 0:02:35.5]} 12... cxd5
{[%clk 0:02:21.5]} 13. Nd2 {[%clk 0:02:22.8]} 13... e6 {[%clk 0:02:14.1]} 14.
Ba3 {[%clk 0:02:22.2]} 14... Re8 {[%clk 0:02:12.2]} 15. Bc5 {[%clk 0:02:21.9]}
15... Ra8 {[%clk 0:02:07.8]} 16. Qxb7 {[%clk 0:02:20.8]} 16... Nd7 {[%clk
0:02:04.7]} 17. Bb4 {[%clk 0:02:05.6]} 17... Qc8 {[%clk 0:01:54.9]} 18. Qxc8
{[%clk 0:02:02.5]} 18... Raxc8 {[%clk 0:01:54.9]} 19. e4 {[%clk 0:02:02.1]}
19... dxe4 {[%clk 0:01:55.5]} 20. Nxe4 {[%clk 0:02:02]} 20... Bxe4 {[%clk
0:01:54.4]} 21. Bxe4 {[%clk 0:02:02.9]} 21... Bf8 {[%clk 0:01:53.8]} 22. Bb7
{[%clk 0:02:02]} 22... Rc7 {[%clk 0:01:40.5]} 23. Bxa6 {[%clk 0:02:01.6]} 23...
Ra8 {[%clk 0:01:08.9]} 24. Be2 {[%clk 0:01:55.2]} 24... Nf6 {[%clk 0:01:04.3]}
25. Bf3 {[%clk 0:01:40.7]} 25... Raa7 {[%clk 0:01:04.1]} 26. a6 {[%clk
0:01:38.6]} 26... Nd7 {[%clk 0:00:38.6]} 27. Rfb1 {[%clk 0:01:31.3]} 27... h5
{[%clk 0:00:29.6]} 28. Bxf8 {[%clk 0:01:29.9]} 28... Kxf8 {[%clk 0:00:30.5]} 29.
Rb7 {[%clk 0:01:29.4]} 29... Rcxb7 {[%clk 0:00:27.6]} 30. Bxb7 {[%clk
0:01:29.6]} 30... Nb8 {[%clk 0:00:22.1]} 31. c4 {[%clk 0:01:27.7]} 31... Ke7
{[%clk 0:00:21.9]} 32. h4 {[%clk 0:01:27.3]} 32... Kd7 {[%clk 0:00:20.3]} 33.
Kg2 {[%clk 0:01:26.1]} 33... Kc7 {[%clk 0:00:19.4]} 34. Kf3 {[%clk 0:01:24.2]}
34... Nd7 {[%clk 0:00:18.8]} 35. Kf4 {[%clk 0:01:19.9]} 35... f6 {[%clk
0:00:15.3]} 36. Re1 {[%clk 0:01:16.4]} 36... e5+ {[%clk 0:00:08.9]} 37. dxe5
{[%clk 0:01:15.4]} 37... Nxe5 {[%clk 0:00:09.1]} 38. Rxe5 {[%clk 0:01:15.6]}
38... fxe5+ {[%clk 0:00:10]} 39. Kxe5 {[%clk 0:01:15.6]} 1-0